bitfinex/quotes_BTCUSD_20240727
["timestamp","ask_amount","ask_price","bid_price","bid_amount"]
[1722099777894,0.16903471,68852.0,68851.0,0.47104697]
[1722099778455,0.16903471,68852.0,68851.0,0.028]
[1722099778684,0.16903471,68852.0,68851.0,0.35033792]
[1722099779640,0.16903471,68852.0,68851.0,0.028]
[1722099779826,0.16903471,68852.0,68851.0,0.0715409]
[1722099780231,0.45951271,68852.0,68851.0,0.0715409]
[1722099780390,0.16903471,68852.0,68851.0,0.028]
[1722099780590,0.45951271,68852.0,68851.0,0.028]
[1722099780851,0.74999071,68852.0,68851.0,0.028]
[1722099781051,1.04046871,68852.0,68851.0,0.028]
[1722099781394,1.017673,68852.0,68851.0,0.028]
[1722099781833,1.016673,68852.0,68851.0,0.014]
[1722099782195,0.1436,68840.0,68838.0,0.0435409]
[1722099782470,0.1436,68840.0,68827.0,0.00091244]
[1722099782721,0.1436,68840.0,68825.0,0.0435409]
[1722099782936,0.1436,68840.0,68821.0,0.0435409]
[1722099782937,0.290551,68835.0,68821.0,0.0435409]
[1722099783174,0.1436,68840.0,68820.0,0.33652696]
[1722099783175,0.290584,68827.0,68820.0,0.33652696]
[1722099783347,0.145295,68826.0,68820.0,0.1477]
[1722099783508,0.145295,68826.0,68820.0,0.293006]
[1722099783709,0.290576,68829.0,68821.0,0.145304]
[1722099783938,0.145295,68826.0,68820.0,0.293006]
[1722099784292,0.145297,68825.0,68820.0,0.1477]
[1722099784497,0.290608,68821.0,68820.0,0.0829]
[1722099784831,0.02280422,68825.0,68820.0,0.0969]
[1722099785203,0.145298,68824.0,68820.0,0.0969]
[1722099785403,0.145301,68823.0,68820.0,0.0969]
[1722099785639,0.31339922,68825.0,68820.0,0.0969]
[1722099785640,0.145302,68822.0,68820.0,0.0969]
[1722099785842,0.145302,68822.0,68820.0,0.0829]
[1722099786164,0.290597,68824.0,68820.0,0.0829]
[1722099786165,0.1453,68823.0,68820.0,0.0969]
[1722099786339,0.290597,68824.0,68820.0,0.0829]
[1722099786340,0.145298,68824.0,68820.0,0.0829]
[1722099786723,0.001,68821.0,68820.0,0.1109]
[1722099787157,0.146304,68821.0,68820.0,0.1109]
[1722099787358,0.145304,68821.0,68820.0,0.0969]
[1722099787585,0.145302,68822.0,68820.0,0.1109]
[1722099788193,0.145302,68822.0,68820.0,0.0829]
[1722099788533,0.001,68821.0,68820.0,0.1109]
[1722099788736,0.001,68821.0,68820.0,0.0969]
[1722099789136,0.001,68821.0,68820.0,0.1109]
[1722099789338,0.001,68821.0,68820.0,0.0969]
[1722099789683,0.001,68821.0,68820.0,0.1109]
[1722099790093,0.1453,68823.0,68820.0,0.0969]
[1722099790287,0.001,68822.0,68820.0,0.1109]
[1722099790901,0.1453,68823.0,68820.0,0.0969]
[1722099791106,0.001,68821.0,68820.0,0.1109]
[1722099791340,0.001,68821.0,68820.0,0.0969]
[1722099791495,0.001,68821.0,68820.0,0.1109]
[1722099791700,0.1453,68823.0,68820.0,0.0969]
[1722099791898,0.001,68822.0,68820.0,0.1109]
[1722099792149,0.001,68822.0,68821.0,0.145304]
[1722099792384,0.001,68822.0,68821.0,0.43881768]
[1722099792587,0.001,68822.0,68820.0,0.0969]
[1722099793058,0.001,68822.0,68821.0,0.145304]
[1722099793263,0.290444,68860.0,68825.0,0.145294]
[1722099793491,0.145283,68831.0,68822.0,0.00290568]
[1722099793618,0.2074,68847.0,68824.0,0.145297]
[1722099793818,0.0228034,68837.0,68824.0,0.145297]
[1722099794054,0.290566,68831.0,68824.0,0.145297]
[1722099794482,0.145287,68830.0,68823.0,0.145298]
[1722099794650,0.145287,68830.0,68821.0,0.290608]
[1722099794651,0.290568,68831.0,68824.0,0.145297]
[1722099794996,0.290537,68838.0,68820.0,0.0969]
[1722099795208,0.145277,68834.0,68828.0,0.0607]
[1722099795585,0.290514,68844.0,68828.0,0.205988]
[1722099795586,0.145275,68835.0,68828.0,0.205988]
[1722099795770,0.350929,68840.0,68831.0,0.290566]
[1722099796106,0.290514,68844.0,68829.0,0.0752]
[1722099796107,0.145258,68843.0,68829.0,0.0752]
[1722099796270,0.145256,68844.0,68838.0,0.145268]
[1722099796473,0.145256,68844.0,68829.0,0.0752]
[1722099796474,0.145262,68841.0,68835.0,0.145273]
[1722099796687,0.14526,68842.0,68836.0,0.145272]
[1722099796837,0.145258,68843.0,68835.0,0.290549]
[1722099797033,0.145258,68843.0,68837.0,0.14527]
[1722099797233,0.001,68840.0,68836.0,0.290543]
[1722099797433,0.001,68840.0,68836.0,0.145272]
[1722099797635,0.290516,68843.0,68829.0,0.0752]
[1722099797845,0.145275,68835.0,68829.0,0.0752]
[1722099798072,0.290534,68839.0,68831.0,0.145282]
[1722099798389,0.145273,68836.0,68831.0,0.145282]
[1722099798766,0.350743,68837.0,68829.0,0.0752]
[1722099799116,0.350743,68837.0,68823.0,0.0752]
[1722099799117,0.145289,68828.0,68823.0,0.0752]
[1722099799250,0.145289,68828.0,68820.0,0.145304]
[1722099799251,0.435868,68828.0,68820.0,0.145304]
[1722099799449,0.435868,68828.0,68819.0,0.0752]
[1722099799649,0.435868,68828.0,68821.0,0.145304]
[1722099799850,0.435868,68828.0,68819.0,0.0752]
[1722099800061,0.145289,68828.0,68819.0,0.0752]
[1722099800284,0.435868,68828.0,68819.0,0.0752]
[1722099800460,0.145289,68828.0,68827.0,0.4858]
[1722099800860,0.435868,68828.0,68827.0,0.4858]
[1722099801404,0.435868,68828.0,68827.0,0.4998]
[1722099801601,0.290546,68836.0,68827.0,0.4998]
[1722099801934,0.02280441,68828.0,68827.0,0.4998]
[1722099802173,0.0602,68837.0,68827.0,0.4998]
[1722099802343,0.435868,68828.0,68827.0,0.4998]
[1722099802758,0.435868,68828.0,68827.0,0.4858]
[1722099802961,0.435868,68828.0,68827.0,0.4978]
[1722099803118,0.435868,68828.0,68827.0,0.026]
[1722099803523,0.435868,68828.0,68827.0,0.012]
[1722099804181,0.145289,68828.0,68827.0,0.025]
[1722099804369,0.145288,68829.0,68827.0,0.025]
[1722099804694,0.0602,68837.0,68823.0,0.000924]
[1722099804828,0.145275,68835.0,68827.0,0.014]
[1722099805180,0.290548,68836.0,68828.0,0.145289]
[1722099805397,0.290548,68836.0,68827.0,0.173291]
[1722099805398,0.145277,68834.0,68827.0,0.173291]
[1722099805602,0.290548,68836.0,68827.0,0.173291]
[1722099805603,0.14528,68833.0,68827.0,0.028]
[1722099805738,0.14528,68833.0,68827.0,0.159291]
[1722099805941,0.145277,68834.0,68828.0,0.145289]
[1722099806546,0.02280366,68833.0,68827.0,0.145291]
[1722099806749,0.02280366,68833.0,68827.0,0.159291]
[1722099807299,0.145277,68834.0,68827.0,0.145291]
[1722099807491,0.145277,68834.0,68828.0,0.159288]
[1722099807696,0.145277,68834.0,68828.0,0.014]
[1722099807875,0.145279,68833.0,68828.0,0.014]
[1722099808051,0.145275,68835.0,68828.0,0.145288]
[1722099808252,0.290552,68835.0,68827.0,0.17329]
[1722099808485,0.14528,68833.0,68827.0,0.15929]
[1722099809006,0.0602,68837.0,68827.0,0.15929]
[1722099809007,0.0602,68837.0,68829.0,0.145287]
[1722099809204,0.290549,68836.0,68828.0,0.159288]
[1722099809362,0.145278,68834.0,68828.0,0.014]
[1722099809782,0.145278,68834.0,68828.0,0.159288]
[1722099809987,0.145278,68834.0,68828.0,0.173288]
[1722099810187,0.145279,68833.0,68828.0,0.014]
[1722099810387,0.145277,68834.0,68828.0,0.014]
[1722099810587,0.16808262,68833.0,68827.0,0.145291]
[1722099810787,0.16808262,68833.0,68828.0,0.014]
[1722099811378,0.145281,68832.0,68828.0,0.014]
[1722099811580,0.145281,68832.0,68827.0,0.014]
[1722099811785,0.290559,68833.0,68827.0,0.014]
[1722099812189,0.290559,68833.0,68826.0,0.145293]
[1722099812190,0.145281,68832.0,68826.0,0.145293]
[1722099812388,0.145287,68829.0,68828.0,0.014]
[1722099812515,0.145285,68830.0,68823.0,0.000924]
[1722099812717,0.145285,68830.0,68824.0,0.145297]
[1722099812961,0.145284,68831.0,68827.0,0.028]
[1722099813168,0.145284,68831.0,68827.0,0.014]
[1722099813379,0.145284,68831.0,68825.0,0.145295]
[1722099813380,0.145283,68831.0,68825.0,0.145295]
[1722099813582,0.145283,68831.0,68826.0,0.014]
[1722099813932,0.290555,68834.0,68826.0,0.159293]
[1722099814152,0.145281,68832.0,68826.0,0.159293]
[1722099814861,0.145281,68832.0,68823.0,0.291521]
[1722099814862,0.145283,68831.0,68825.0,0.145294]
[1722099815068,0.145283,68831.0,68825.0,0.159294]
[1722099815272,0.290558,68833.0,68825.0,0.159294]
[1722099815273,0.145281,68832.0,68826.0,0.145293]
[1722099815656,0.145283,68831.0,68825.0,0.159295]
[1722099815880,0.145283,68831.0,68826.0,0.014]
[1722099816099,0.145283,68831.0,68825.0,0.145295]
[1722099816620,0.16808993,68830.0,68826.0,0.014]
[1722099816816,0.145286,68830.0,68826.0,0.014]
[1722099816960,0.145286,68830.0,68824.0,0.145297]
[1722099817196,0.145286,68830.0,68823.0,0.291521]
[1722099817437,0.290558,68833.0,68825.0,0.014]
[1722099817642,0.43588,68826.0,68825.0,0.014]
[1722099817839,0.145297,68825.0,68823.0,0.000924]
[1722099818051,0.145298,68824.0,68823.0,0.000924]
[1722099819355,0.145298,68824.0,68823.0,0.014924]
[1722099819513,0.16810312,68824.0,68823.0,0.014924]
[1722099820053,0.145298,68824.0,68823.0,0.028924]
[1722099820260,0.435894,68824.0,68823.0,0.028924]
[1722099820472,1.017086,68824.0,68823.0,0.028924]
[1722099821783,1.017086,68824.0,68823.0,0.014924]
[1722099822618,0.72649,68824.0,68823.0,0.028924]
[1722099822824,0.74929565,68824.0,68823.0,0.028924]
[1722099824043,0.72649,68824.0,68823.0,0.028924]
[1722099825946,1.017086,68824.0,68823.0,0.028924]
[1722099826676,0.72649,68824.0,68823.0,0.028924]
[1722099828210,0.0637,68831.0,68823.0,0.028924]
[1722099828412,0.145298,68824.0,68823.0,0.028924]
[1722099828781,0.435894,68824.0,68823.0,0.028924]
[1722099829077,0.290589,68826.0,68823.0,0.028924]
[1722099829380,0.145298,68824.0,68823.0,0.014924]
[1722099829562,0.145298,68824.0,68823.0,0.025924]
[1722099829977,0.145298,68824.0,68823.0,0.000924]
[1722099830424,0.435894,68824.0,68823.0,0.028924]
[1722099830983,0.145296,68825.0,68823.0,0.028924]
[1722099831183,0.290579,68828.0,68823.0,0.028924]
[1722099831386,0.290571,68830.0,68823.0,0.028924]
[1722099831592,0.0637,68831.0,68823.0,0.000924]
[1722099831593,0.1681012,68825.0,68823.0,0.000924]
[1722099831754,0.1681012,68825.0,68823.0,0.014924]
[1722099831956,0.145298,68824.0,68823.0,0.028924]
[1722099832194,0.1681012,68825.0,68823.0,0.014924]
[1722099832402,0.1681012,68825.0,68823.0,0.000924]
[1722099832660,0.145298,68824.0,68823.0,0.022924]
[1722099832862,0.145298,68824.0,68823.0,0.012924]
[1722099833278,0.435894,68824.0,68823.0,0.014924]
[1722099833640,0.435894,68824.0,68823.0,0.028924]
[1722099833830,0.145298,68824.0,68823.0,0.028924]
[1722099834451,0.1681012,68825.0,68823.0,0.028924]
[1722099834646,0.0228052,68825.0,68823.0,0.028924]
[1722099834869,0.1681022,68825.0,68823.0,0.028924]
[1722099835150,0.1681022,68825.0,68823.0,0.014924]
[1722099835386,0.1681022,68825.0,68823.0,0.028924]
[1722099835622,0.145297,68825.0,68823.0,0.014924]
[1722099835830,0.145298,68824.0,68823.0,0.000924]
[1722099835975,0.145298,68824.0,68823.0,0.014924]
[1722099836177,0.145298,68824.0,68823.0,0.028924]
[1722099836782,0.145298,68824.0,68823.0,0.000924]
[1722099838127,0.145298,68824.0,68823.0,0.028924]
[1722099838736,0.16810327,68824.0,68823.0,0.028924]
[1722099839132,0.145298,68824.0,68823.0,0.028924]
[1722099839948,0.354267,68831.0,68823.0,0.028924]
[1722099840169,0.145298,68824.0,68823.0,0.028924]
[1722099840512,0.354267,68831.0,68823.0,0.028924]
[1722099840513,0.145294,68826.0,68823.0,0.028924]
[1722099840738,0.0637,68831.0,68823.0,0.319522]
[1722099840739,0.145286,68830.0,68823.0,0.319522]
[1722099840931,0.145286,68830.0,68824.0,0.145297]
[1722099841138,0.290567,68831.0,68823.0,0.319522]
[1722099841139,0.145287,68829.0,68823.0,0.174223]
[1722099841343,0.145286,68830.0,68823.0,0.000924]
[1722099841516,0.145287,68829.0,68824.0,0.15208493]
[1722099841724,0.145287,68830.0,68824.0,0.15208493]
[1722099841923,0.145288,68829.0,68824.0,0.00678693]
[1722099842265,0.02280441,68828.0,68825.0,0.0015542]
[1722099842423,0.02280441,68828.0,68825.0,0.00835046]
[1722099842631,0.16809441,68828.0,68825.0,0.00835046]
[1722099842826,0.02280441,68828.0,68825.0,0.00835046]
[1722099844986,0.02280441,68828.0,68825.0,0.03535046]
[1722099845150,0.145289,68828.0,68825.0,0.03535046]
[1722099845748,0.436058,68833.0,68825.0,0.03535046]
[1722099845953,0.145285,68830.0,68825.0,0.03535046]
[1722099846232,0.290562,68832.0,68825.0,0.03535046]
[1722099846233,0.145287,68829.0,68825.0,0.03535046]
[1722099847138,0.290568,68831.0,68825.0,0.03535046]
[1722099847139,0.145289,68828.0,68825.0,0.03535046]
[1722099847370,0.145287,68829.0,68825.0,0.03535046]
[1722099847570,0.145285,68830.0,68825.0,0.03535046]
[1722099847777,0.145287,68829.0,68825.0,0.00835046]
[1722099847999,0.145285,68830.0,68825.0,0.0205542]
[1722099848203,0.145287,68829.0,68826.0,0.00679288]
[1722099848817,0.145287,68829.0,68825.0,0.024]
[1722099849015,0.145291,68827.0,68826.0,0.00679288]
[1722099849219,0.145291,68827.0,68825.0,0.012]
[1722099849220,0.145293,68826.0,68825.0,0.012]
[1722099849447,0.145293,68826.0,68823.0,0.000924]
[1722099849928,0.145296,68825.0,68824.0,0.00679965]
[1722099850349,0.72648,68825.0,68824.0,0.00679965]
[1722099850550,0.94678,68825.0,68824.0,0.00679965]
[1722099850755,0.72649,68824.0,68823.0,0.000924]
[1722099852038,0.290551,68835.0,68823.0,0.156724]
[1722099852206,0.14529,68828.0,68823.0,0.156724]
[1722099852409,0.0829,68833.0,68824.0,0.0015542]
[1722099852582,0.290533,68839.0,68832.0,0.0829]
[1722099852871,0.0615,68843.0,68833.0,0.00677154]
[1722099852872,0.145269,68838.0,68833.0,0.00677154]
[1722099853071,0.02280237,68838.0,68833.0,0.15204854]
[1722099853280,0.0615,68846.0,68835.0,0.1418]
[1722099853473,0.0151917,68857.0,68837.0,0.0015542]
[1722099853474,0.145261,68842.0,68837.0,0.0015542]
[1722099853884,0.145262,68841.0,68838.0,0.01012508]
[1722099854086,0.145264,68840.0,68839.0,0.0015542]
[1722099854287,0.435792,68840.0,68839.0,0.0015542]
[1722099854488,0.435792,68840.0,68839.0,0.01012]
[1722099854708,0.145267,68839.0,68835.0,0.1418]
[1722099855122,0.290522,68842.0,68836.0,0.01013523]
[1722099855326,0.290522,68842.0,68839.0,0.007]
[1722099855327,0.145262,68841.0,68839.0,0.007]
[1722099855543,0.290473,68854.0,68843.0,0.290516]
[1722099855771,0.290499,68847.0,68841.0,0.0604]
[1722099855960,0.00890292,68857.0,68844.0,0.01009463]
[1722099855961,0.43576,68845.0,68844.0,0.01009463]
[1722099856161,0.145261,68842.0,68840.0,0.0814]
[1722099856588,0.16805141,68846.0,68840.0,0.0814]
[1722099856809,0.16805141,68846.0,68842.0,0.00152277]
[1722099857051,0.145257,68844.0,68843.0,0.0100997]
[1722099857209,0.435768,68844.0,68843.0,0.0100997]
[1722099857416,0.14526,68842.0,68841.0,0.0015542]
[1722099857621,0.14526,68842.0,68841.0,0.01166405]
[1722099857796,0.43578,68842.0,68841.0,0.01166405]
[1722099858699,0.14526,68842.0,68841.0,0.01010985]
[1722099858912,0.290507,68845.0,68841.0,0.02410985]
[1722099859108,0.290507,68845.0,68842.0,0.0015542]
[1722099859109,0.145258,68843.0,68842.0,0.0015542]
[1722099859536,0.145258,68843.0,68842.0,0.01165898]
[1722099860688,0.145258,68843.0,68842.0,0.01010478]
[1722099861033,0.145258,68843.0,68842.0,0.02310478]
[1722099861322,0.145258,68843.0,68842.0,0.01010478]
[1722099861590,0.145258,68843.0,68842.0,0.02410478]
[1722099861792,0.145258,68843.0,68842.0,0.03810478]
[1722099862098,0.145258,68843.0,68842.0,0.028]
[1722099862270,0.145258,68843.0,68842.0,0.014]
[1722099862693,0.145258,68843.0,68842.0,0.028]
[1722099862850,0.145258,68843.0,68842.0,0.03810478]
[1722099863510,0.31330441,68846.0,68842.0,0.03810478]
[1722099863511,0.02279941,68846.0,68842.0,0.03810478]
[1722099863734,0.31330441,68846.0,68842.0,0.03810478]
[1722099864076,0.02279941,68846.0,68843.0,0.0604]
[1722099864205,0.02279941,68846.0,68844.0,0.290511]
[1722099864396,0.02279941,68846.0,68845.0,0.15619593]
[1722099864596,0.145242,68851.0,68845.0,0.15530044]
[1722099864799,0.145236,68854.0,68846.0,0.0814]
[1722099865055,0.1442,68865.0,68849.0,0.145244]
[1722099865056,0.145232,68855.0,68849.0,0.145244]
[1722099865292,0.145231,68856.0,68850.0,0.205641]
[1722099865502,0.145231,68856.0,68851.0,0.145241]
[1722099865708,0.290458,68857.0,68850.0,0.07036686]
[1722099865709,0.145233,68855.0,68852.0,0.0015542]
[1722099865923,0.145233,68855.0,68852.0,0.00995671]
[1722099866100,0.145233,68855.0,68851.0,0.0015542]
[1722099866287,0.145233,68855.0,68853.0,0.00995164]
[1722099866487,0.290428,68864.0,68854.0,0.0015542]
[1722099866488,0.145229,68857.0,68854.0,0.0015542]
[1722099866657,0.290455,68858.0,68854.0,0.01150076]
[1722099866868,0.145231,68856.0,68854.0,0.0015542]
[1722099867081,0.145237,68853.0,68851.0,0.0015542]
[1722099867323,0.145235,68854.0,68852.0,0.0814]
[1722099867525,0.145232,68856.0,68853.0,0.0015542]
[1722099867738,0.145227,68858.0,68853.0,0.0015542]
[1722099867945,0.145228,68857.0,68853.0,0.0015542]
[1722099868775,0.145231,68856.0,68853.0,0.0015542]
[1722099869014,0.145231,68856.0,68853.0,0.0075542]
[1722099869161,0.145228,68858.0,68853.0,0.0075542]
[1722099869357,0.145229,68857.0,68853.0,0.0015542]
[1722099869599,0.145222,68860.0,68854.0,0.145234]
[1722099869802,0.14522,68861.0,68855.0,0.1467862]
[1722099870219,0.290435,68862.0,68853.0,0.007]
[1722099870420,0.145226,68858.0,68854.0,0.0015542]
[1722099870621,0.1442,68865.0,68854.0,0.0015542]
[1722099870622,0.145222,68860.0,68854.0,0.0015542]
[1722099870780,0.145222,68860.0,68854.0,0.1467872]
[1722099870983,0.145216,68863.0,68857.0,0.145228]
[1722099871183,0.145218,68862.0,68858.0,0.0015542]
[1722099871387,0.145216,68863.0,68858.0,0.0015542]
[1722099871589,0.290426,68865.0,68859.0,0.00712058]
[1722099871825,0.145218,68862.0,68859.0,0.00712058]
[1722099871995,0.14522,68861.0,68857.0,0.0015542]
[1722099872210,0.14522,68861.0,68858.0,0.00712396]
[1722099872769,0.145204,68869.0,68864.0,0.145213]
[1722099872971,0.0645,68877.0,68861.0,0.0663]
[1722099872972,0.3055787,68874.0,68861.0,0.06920407]
[1722099873242,0.145203,68869.0,68863.0,0.145215]
[1722099873448,0.354872,68877.0,68864.0,0.00710367]
[1722099873449,0.14519,68875.0,68864.0,0.00710367]
[1722099873586,0.145191,68875.0,68868.0,0.1449]
[1722099873796,0.16797727,68876.0,68870.0,0.145201]
[1722099874002,0.16797727,68876.0,68870.0,0.15227266]
[1722099874197,0.31316627,68876.0,68870.0,0.00707166]
[1722099874404,0.145203,68870.0,68868.0,0.1449]
[1722099874616,0.146039,68871.0,68869.0,0.00862924]
[1722099875008,0.00084,68871.0,68869.0,0.00862924]
[1722099875813,0.02363149,68871.0,68869.0,0.00862924]
[1722099876015,0.02363149,68871.0,68869.0,0.02262924]
[1722099876828,0.02363149,68871.0,68869.0,0.03662924]
[1722099877030,0.02363149,68871.0,68869.0,0.0295542]
[1722099877031,0.00084,68871.0,68869.0,0.0295542]
[1722099878437,0.00084,68871.0,68869.0,0.0155542]
[1722099878670,0.00084,68871.0,68869.0,0.0015542]
[1722099878878,0.500103,68870.0,68869.0,0.0155542]
[1722099879068,0.500103,68870.0,68869.0,0.028]
[1722099879824,0.500103,68870.0,68869.0,0.014]
[1722099879994,0.435603,68870.0,68869.0,0.014]
[1722099880203,0.435603,68870.0,68869.0,0.025]
[1722099880497,0.74879667,68870.0,68869.0,0.011]
[1722099880708,1.18129867,68870.0,68869.0,0.025]
[1722099881270,1.18129867,68870.0,68869.0,0.011]
[1722099881454,1.18129867,68870.0,68869.0,0.025]
[1722099881657,1.158507,68870.0,68869.0,0.025]
[1722099881971,1.158507,68870.0,68869.0,0.011]
[1722099882306,0.145225,68859.0,68857.0,0.0015542]
[1722099882568,0.290445,68860.0,68857.0,0.0015542]
[1722099882569,0.145226,68858.0,68857.0,0.0015542]
[1722099882975,0.145221,68861.0,68857.0,0.0015542]
[1722099883177,0.14522,68861.0,68857.0,0.0015542]
[1722099883347,0.290432,68863.0,68857.0,0.0015542]
[1722099883529,0.145218,68862.0,68857.0,0.1467822]
[1722099883738,0.145218,68862.0,68857.0,0.1607822]
[1722099884109,0.145218,68862.0,68857.0,0.1467822]
[1722099884652,0.145213,68864.0,68859.0,0.145224]
[1722099884823,0.432502,68870.0,68856.0,0.369058]
[1722099884824,0.290423,68865.0,68860.0,0.0015542]
[1722099885058,0.02279334,68861.0,68858.0,0.145226]
[1722099885267,0.435636,68865.0,68859.0,0.14606298]
[1722099885479,0.145214,68864.0,68859.0,0.145223]
[1722099885810,0.145215,68863.0,68860.0,0.00083998]
[1722099886101,0.145215,68863.0,68859.0,0.00083998]
[1722099886317,0.290414,68867.0,68860.0,0.145221]
[1722099886473,0.145213,68865.0,68861.0,0.00083998]
[1722099886681,0.145213,68864.0,68861.0,0.00083998]
[1722099886884,0.145213,68864.0,68859.0,0.009]
[1722099886885,0.290428,68864.0,68859.0,0.009]
[1722099887091,0.290421,68866.0,68860.0,0.00083998]
[1722099887255,0.145217,68863.0,68860.0,0.00083998]
[1722099887451,0.145217,68863.0,68860.0,0.01]
[1722099887934,0.145217,68863.0,68858.0,0.145226]
[1722099888147,0.1421,68870.0,68860.0,0.290442]
[1722099888273,0.1421,68870.0,68861.0,0.00083998]
[1722099888274,0.02279318,68863.0,68861.0,0.00083998]
[1722099888687,0.02279318,68863.0,68859.0,0.145223]
[1722099889099,0.02279318,68863.0,68860.0,0.00083998]
[1722099889310,0.02279318,68863.0,68860.0,0.00783998]
[1722099889716,0.02279318,68863.0,68860.0,0.15306098]
[1722099889930,0.145212,68865.0,68860.0,0.14606098]
[1722099890137,0.145212,68865.0,68860.0,0.145221]
[1722099890329,0.145212,68865.0,68861.0,0.00083998]
[1722099890526,0.145212,68865.0,68860.0,0.145221]
[1722099890741,0.290409,68869.0,68861.0,0.00083998]
[1722099891007,0.145209,68866.0,68861.0,0.00083998]
[1722099891160,0.290415,68867.0,68861.0,0.00083998]
[1722099891499,0.00084,68871.0,68861.0,0.1412]
[1722099891624,0.00084,68871.0,68866.0,0.145209]
[1722099892137,0.00084,68871.0,68867.0,0.145207]
[1722099892388,0.00084,68871.0,68869.0,0.0808]
[1722099892662,0.00084,68871.0,68870.0,0.06123998]
[1722099892887,0.00084,68871.0,68870.0,0.0604]
[1722099893350,0.02363161,68871.0,68870.0,0.0604]
[1722099893572,0.00084,68871.0,68870.0,0.0604]
[1722099893953,0.00084,68871.0,68870.0,0.0617098]
[1722099894371,0.00084,68871.0,68870.0,0.0744]
[1722099894673,0.00084,68871.0,68870.0,0.0759542]
[1722099895039,0.00084,68871.0,68870.0,0.0744]
[1722099895265,0.00084,68871.0,68870.0,0.219601]
[1722099895467,0.00084,68871.0,68870.0,0.0744]
[1722099895693,0.00084,68871.0,68870.0,0.028]
[1722099895899,0.00084,68871.0,68870.0,0.014]
[1722099896366,0.02363131,68871.0,68870.0,0.014]
[1722099896578,0.02363131,68871.0,68868.0,0.0015542]
[1722099896930,0.02363131,68871.0,68870.0,0.014]
[1722099897568,0.02363131,68871.0,68868.0,0.0015542]
[1722099897752,0.02363131,68871.0,68870.0,0.014]
[1722099898176,0.02363131,68871.0,68868.0,0.0155542]
[1722099898177,0.02363131,68871.0,68869.0,0.0015542]
[1722099898861,0.16882931,68871.0,68870.0,0.014]
[1722099899066,0.45922631,68871.0,68870.0,0.014]
[1722099899285,0.31402831,68871.0,68866.0,0.0015542]
[1722099899501,0.145203,68869.0,68866.0,0.0015542]
[1722099899881,0.02363131,68871.0,68866.0,0.0015542]
[1722099900108,0.02363131,68871.0,68867.0,0.145206]
[1722099900335,0.02363131,68871.0,68870.0,0.014]
[1722099900542,0.146039,68871.0,68865.0,0.286411]
[1722099900747,0.146039,68871.0,68866.0,0.00083998]
[1722099901056,0.146039,68871.0,68866.0,0.01483998]
[1722099901260,0.00084,68871.0,68866.0,0.14604898]
[1722099901813,0.00084,68871.0,68870.0,0.014]
[1722099902323,0.00084,68871.0,68867.0,0.145207]
[1722099902509,0.00084,68871.0,68870.0,0.435603]
[1722099902669,0.00084,68871.0,68870.0,0.449603]
[1722099902833,0.00084,68871.0,68870.0,0.159201]
[1722099903036,0.00084,68871.0,68870.0,0.43644298]
[1722099903276,0.00084,68871.0,68870.0,0.435603]
[1722099903483,0.00084,68871.0,68870.0,0.014]
[1722099903690,0.436435,68871.0,68870.0,0.014]
[1722099903854,0.4592245,68871.0,68870.0,0.014]
[1722099904507,0.8927215,68871.0,68870.0,0.014]
[1722099904673,1.1831185,68871.0,68870.0,0.014]
[1722099905472,1.160329,68871.0,68870.0,0.014]
[1722099905646,1.260329,68871.0,68870.0,0.014]
[1722099905848,0.435672,68859.0,68853.0,0.0015542]
[1722099906079,0.79132,68859.0,68853.0,0.0015542]
[1722099906603,1.164468,68859.0,68853.0,0.0015542]
[1722099906842,1.164468,68859.0,68847.0,0.0015542]
[1722099907259,1.081768,68859.0,68847.0,0.0015542]
[1722099907438,1.081768,68859.0,68846.0,0.696751]
[1722099908086,1.081768,68859.0,68847.0,0.145249]
[1722099908286,1.081768,68859.0,68851.0,0.14524]
[1722099908287,0.500872,68859.0,68851.0,0.14524]
[1722099908498,0.52366736,68859.0,68858.0,0.014924]
[1722099908868,0.45846736,68859.0,68858.0,0.014924]
[1722099909072,0.74891536,68859.0,68858.0,0.000924]
[1722099909261,0.74891536,68859.0,68858.0,0.014924]
[1722099909464,0.45846736,68859.0,68858.0,0.014924]
[1722099909605,0.45846736,68859.0,68858.0,0.010924]
[1722099909786,0.74891536,68859.0,68858.0,0.010924]
[1722099909981,0.45846736,68859.0,68858.0,0.010924]
[1722099910224,0.435672,68859.0,68858.0,0.010924]
[1722099910441,0.435672,68859.0,68858.0,0.020924]
[1722099910646,0.72612,68859.0,68858.0,0.010924]
[1722099912245,0.72612,68859.0,68858.0,0.022924]
[1722099912697,0.86992,68859.0,68858.0,0.022924]
[1722099912983,0.89271499,68859.0,68858.0,0.022924]
[1722099913534,0.74891499,68859.0,68858.0,0.022924]
[1722099914431,0.72612,68859.0,68858.0,0.022924]
[1722099915537,0.435672,68859.0,68858.0,0.022924]
[1722099917426,0.72612,68859.0,68858.0,0.022924]
[1722099917630,0.74891435,68859.0,68858.0,0.022924]
[1722099918296,0.72612,68859.0,68858.0,0.022924]
[1722099920379,0.435672,68859.0,68858.0,0.022924]
[1722099921316,0.0227941,68859.0,68858.0,0.022924]
[1722099922040,0.0227941,68859.0,68858.0,0.894754]
[1722099922441,0.145205,68868.0,68858.0,0.894754]
[1722099922442,0.145203,68869.0,68863.0,0.145214]
[1722099922648,0.145205,68868.0,68862.0,0.145217]
[1722099922875,0.145206,68868.0,68862.0,0.145217]
[1722099923486,0.10084,68871.0,68861.0,0.290438]
[1722099923487,0.00084,68871.0,68863.0,0.00083998]
[1722099923782,0.001,68869.0,68864.0,0.0797]
[1722099923957,0.00084,68871.0,68866.0,0.290418]
[1722099924165,0.00084,68871.0,68868.0,0.145204]
[1722099924411,0.00084,68871.0,68861.0,0.290436]